bitfinex/quotes_SOLUSD_20240626
["timestamp","ask_amount","ask_price","bid_price","bid_amount"]
[1719367547141,7.1942,139.0,138.94,22.2603]
[1719367547540,7.1942,139.0,138.94,15.0632]
[1719367547747,7.1948,138.99,138.94,15.0632]
[1719367549267,7.1943,139.0,138.94,15.0632]
[1719367549451,7.1937,139.01,138.95,7.1967]
[1719367549755,7.1943,139.0,138.94,22.2604]
[1719367551646,7.1943,139.0,138.94,15.0632]
[1719367552043,7.1948,138.99,138.94,15.0632]
[1719367552357,7.1953,138.98,138.94,15.0632]
[1719367553075,7.1949,138.99,138.94,15.0632]
[1719367553234,7.1943,139.0,138.94,15.0632]
[1719367553437,7.1943,139.0,138.94,48.4005]
[1719367554042,7.1943,139.0,138.94,41.2032]
[1719367555043,15.7042,139.05,138.94,59.1954]
[1719367555248,7.193,139.03,138.97,26.14]
[1719367555442,7.193,139.03,138.97,33.3357]
[1719367555847,7.193,139.03,138.98,26.14]
[1719367556047,7.1934,139.02,138.98,26.14]
[1719367556251,7.1927,139.03,138.98,26.14]
[1719367556659,7.1927,139.03,138.97,7.1957]
[1719367557742,7.1927,139.03,138.96,25.1866]
[1719367560648,7.1925,139.04,138.98,25.1832]
[1719367560965,6.70320358,139.06,138.98,25.1832]
[1719367560966,7.1927,139.03,138.98,17.988]
[1719367561539,7.1923,139.04,138.98,17.988]
[1719367561744,7.1923,139.04,138.98,25.1831]
[1719367562360,7.1923,139.04,138.99,6.6309]
[1719367562558,16.2901,139.09,139.0,16.06529524]
[1719367562766,16.2901,139.09,139.01,7.1936]
[1719367562767,7.1906,139.07,139.01,7.1936]
[1719367563057,7.1906,139.07,139.02,0.72083408]
[1719367563366,7.1906,139.07,139.01,7.1936]
[1719367564445,7.1903,139.08,139.01,7.1936]
[1719367565281,7.1897,139.09,139.03,7.1924]
[1719367565456,12.85864262,139.1,139.04,7.1921]
[1719367565762,7.1886,139.11,139.05,13.7754]
[1719367567159,7.189,139.1,139.05,6.5839]
[1719367567469,7.1887,139.11,139.05,6.5839]
[1719367567671,7.1887,139.11,139.05,13.7753]
[1719367568049,6.70320358,139.16,139.06,23.8122]
[1719367568275,7.1875,139.13,139.07,7.3602]
[1719367568466,7.1875,139.13,139.07,7.5302]
[1719367568773,7.1876,139.13,139.07,7.5302]
[1719367570072,7.1868,139.15,139.08,7.19]
[1719367570366,6.70320358,139.16,139.09,7.1895]
[1719367570572,7.1866,139.15,139.09,7.1895]
[1719367570974,7.1866,139.15,139.08,17.975]
[1719367571470,273.7899,139.18,139.08,17.975]
[1719367571772,15.1899,139.18,139.08,17.975]
[1719367571975,7.1868,139.15,139.08,25.1647]
[1719367572177,7.187,139.14,139.08,17.975]
[1719367573275,7.1875,139.13,139.08,17.975]
[1719367573483,17.9653,139.16,139.06,16.6216]
[1719367573688,0.34,139.15,139.06,16.6216]
[1719367573861,15.1899,139.18,139.06,16.6216]
[1719367573862,37.9643,139.17,139.06,16.6216]
[1719367574051,7.1881,139.12,139.06,34.599]
[1719367574253,7.1888,139.11,139.06,16.6216]
[1719367574593,7.1881,139.12,139.06,23.8126]
[1719367575373,7.1881,139.12,139.06,16.6216]
[1719367575556,7.1881,139.12,139.06,23.8127]
[1719367575958,7.1876,139.13,139.06,23.8127]
[1719367577162,7.1881,139.12,139.06,23.8127]
[1719367577759,18.89073095,139.21,139.1,6.0923]
[1719367577975,5.86181126,139.21,139.11,34.0949]
[1719367578279,5.86181126,139.21,139.14,7.1869]
[1719367578280,7.1838,139.21,139.14,7.1869]
[1719367578576,16.4222495,139.23,139.12,0.17]
[1719367578761,7.1839,139.2,139.15,26.06]
[1719367578958,7.1833,139.22,139.17,15.6699]
[1719367579658,8.0458495,139.23,139.17,15.6699]
[1719367579863,0.8634495,139.23,139.17,15.6699]
[1719367580184,7.1855,139.17,139.13,22.5679]
[1719367580351,17.9583,139.22,139.13,48.6279]
[1719367580557,7.1845,139.19,139.13,48.6279]
[1719367580758,7.1839,139.2,139.13,22.5679]
[1719367581058,7.1829,139.22,139.14,7.1869]
[1719367581561,7.1843,139.2,139.13,40.5355]
[1719367581956,7.1845,139.19,139.13,40.5355]
[1719367582359,7.1845,139.19,139.13,22.5679]
[1719367582982,7.1838,139.21,139.13,29.7553]
[1719367583168,7.1839,139.2,139.13,29.7553]
[1719367584077,0.8634495,139.23,139.13,40.5365]
[1719367584377,7.1832,139.22,139.15,7.1863]
[1719367584585,0.8634495,139.23,139.13,40.5365]
[1719367584758,0.34,139.22,139.13,40.5365]
[1719367584957,1.0334495,139.23,139.13,40.5365]
[1719367584958,0.8634495,139.23,139.13,40.5365]
[1719367585569,0.8634495,139.23,139.14,0.17]
[1719367585777,7.1839,139.2,139.13,47.7238]
[1719367586082,7.1834,139.21,139.14,7.1868]
[1719367586663,7.1834,139.21,139.15,1.43415338]
[1719367587277,7.1834,139.21,139.14,7.1868]
[1719367587482,7.1839,139.2,139.13,47.724]
[1719367587969,7.1835,139.21,139.14,7.1869]
[1719367588491,7.184,139.2,139.13,47.7239]
[1719367588959,7.1835,139.21,139.14,7.1869]
[1719367590871,7.1839,139.2,139.14,7.1869]
[1719367591275,7.1839,139.2,139.13,47.7239]
[1719367591484,7.1853,139.18,139.13,22.5679]
[1719367591781,7.1855,139.17,139.13,22.5679]
[1719367593989,17.9613,139.19,139.1,16.3373]
[1719367594168,0.34,139.18,139.1,16.3373]
[1719367594686,17.9639,139.17,139.1,16.3373]
[1719367595084,7.1871,139.14,139.1,16.3373]
[1719367595786,16.0979,139.16,139.07,15.6238]
[1719367595984,7.1891,139.1,139.07,15.6238]
[1719367596664,7.1887,139.11,139.07,15.6238]
[1719367597066,7.1881,139.12,139.07,15.6238]
[1719367597886,7.1876,139.13,139.07,15.6238]
[1719367598294,7.187,139.14,139.07,33.6]
[1719367598496,7.1875,139.13,139.07,33.6]
[1719367598871,7.1875,139.13,139.07,40.7902]
[1719367600390,7.1881,139.12,139.07,33.6]
[1719367600595,7.1881,139.12,139.07,15.6238]
[1719367601384,7.1876,139.13,139.07,22.8141]
[1719367602210,17.9667,139.15,139.07,15.6238]
[1719367602383,7.1872,139.14,139.07,15.6238]
[1719367602695,7.1855,139.17,139.11,7.1885]
[1719367602896,7.1848,139.19,139.08,6.9396]
[1719367603096,7.1848,139.19,139.13,15.689]
[1719367603297,258.6,139.2,139.13,15.689]
[1719367603507,17.9588,139.21,139.13,15.689]
[1719367603711,17.9616,139.19,139.13,15.689]
[1719367604007,7.1868,139.15,139.09,22.2705]
[1719367604179,7.186,139.16,139.09,22.2705]
[1719367604590,7.186,139.16,139.1,7.1889]
[1719367605500,7.1853,139.18,139.1,17.972]
[1719367605690,17.4243495,139.23,139.12,22.2305]
[1719367606588,17.4243495,139.23,139.13,0.34]
[1719367606794,7.1835,139.21,139.14,7.1866]
[1719367607313,0.8634495,139.23,139.18,6.6126]
[1719367607502,0.8634495,139.23,139.19,17.96]
[1719367607705,0.8634495,139.23,139.19,25.1439]
[1719367608379,8.0461495,139.23,139.18,6.9526]
[1719367608585,0.8634495,139.23,139.19,0.34]
[1719367609186,0.8634495,139.23,139.18,6.6126]
[1719367609388,0.8634495,139.23,139.18,13.7974]
[1719367610811,0.8634495,139.23,139.18,6.6126]
[1719367611100,8.0462495,139.23,139.18,6.6126]
[1719367611400,7.1829,139.22,139.18,6.6126]
[1719367612005,0.8634495,139.23,139.18,6.6126]
[1719367612207,0.8634495,139.23,139.18,24.5743]
[1719367612415,0.8634495,139.23,139.21,7.1833]
[1719367613081,0.8634495,139.23,139.19,7.1843]
[1719367613279,0.8634495,139.23,139.18,24.7443]
[1719367613509,0.8634495,139.23,139.18,31.9291]
[1719367613694,0.8634495,139.23,139.19,0.34]
[1719367613898,0.8634495,139.23,139.19,7.5243]
[1719367614203,0.8634495,139.23,139.22,7.1828]
[1719367614385,0.8634495,139.23,139.22,23.1874]
[1719367615087,0.8634495,139.23,139.22,43.1874]
[1719367615288,7.1783,139.31,139.24,7.1815]
[1719367615513,7.1783,139.31,139.23,17.955]
[1719367615514,38.63334262,139.36,139.25,7.5211]
[1719367615803,5.66944262,139.35,139.25,7.5211]
[1719367616008,7.1783,139.31,139.25,0.34]
[1719367617408,7.1778,139.32,139.25,7.5213]
[1719367618194,5.66944262,139.35,139.25,0.34]
[1719367618513,7.1791,139.3,139.24,0.17]
[1719367618722,18.1122,139.34,139.24,0.34]
[1719367618723,7.1793,139.29,139.24,0.34]
[1719367619412,17.9448,139.32,139.22,21.9817]
[1719367619613,7.18,139.28,139.22,21.9817]
[1719367620691,7.1803,139.27,139.22,21.9817]
[1719367621100,7.1804,139.27,139.22,21.9817]
[1719367621595,7.1808,139.26,139.22,21.9817]
[1719367621811,7.1813,139.25,139.22,21.9817]
[1719367622117,17.9477,139.3,139.22,21.9817]
[1719367622708,7.1811,139.26,139.22,21.9817]
[1719367623313,7.1813,139.25,139.22,21.9817]
[1719367624203,17.9477,139.3,139.22,21.9817]
[1719367624400,7.1818,139.25,139.22,21.9817]
[1719367625029,7.1809,139.26,139.22,21.9817]
[1719367625516,17.9477,139.3,139.22,21.9817]
[1719367625724,7.1798,139.28,139.22,29.1645]
[1719367625891,7.1793,139.29,139.22,29.1645]
[1719367626095,7.1799,139.28,139.22,29.1645]
[1719367626326,7.1799,139.28,139.22,21.9817]
[1719367626695,7.1794,139.29,139.22,29.1642]
[1719367626896,7.1798,139.28,139.22,29.1642]
[1719367627117,7.1798,139.28,139.22,21.9817]
[1719367627719,7.1803,139.27,139.22,21.9817]
[1719367627922,35.8891,139.32,139.22,21.9817]
[1719367628175,7.1808,139.26,139.22,21.9817]
[1719367628311,7.1813,139.25,139.22,21.9817]
[1719367628814,7.1809,139.26,139.22,21.9817]
[1719367629007,7.1804,139.27,139.22,21.9817]
[1719367629215,7.1799,139.28,139.22,21.9817]
[1719367629415,7.1799,139.28,139.22,29.1645]
[1719367629604,7.1803,139.27,139.22,21.9817]
[1719367630409,17.9446,139.32,139.22,29.1644]
[1719367630832,7.1792,139.3,139.23,7.3523]
[1719367631042,7.1793,139.29,139.24,0.17]
[1719367631604,7.1788,139.3,139.23,7.5222]
[1719367632654,7.1792,139.29,139.23,7.5222]
[1719367632833,7.1788,139.3,139.23,7.5222]
[1719367633250,17.9411,139.35,139.24,7.1817]
[1719367633429,15.0242,139.36,139.25,0.34]
[1719367633630,15.0242,139.36,139.26,0.17]
[1719367633828,7.1777,139.32,139.26,25.1323]
[1719367634029,7.1777,139.32,139.26,17.9516]
[1719367634956,7.1784,139.31,139.25,0.17]
[1719367635163,7.1787,139.3,139.25,0.34]
[1719367635469,7.1782,139.31,139.25,7.5213]
[1719367636463,32.9636,139.36,139.26,7.1806]
[1719367636634,7.1773,139.33,139.27,22.4606]
[1719367637950,7.1767,139.34,139.27,29.6406]
[1719367638139,7.1767,139.34,139.28,7.5197]
[1719367638836,7.1767,139.34,139.28,0.34]
[1719367639870,7.1767,139.34,139.28,7.5197]
[1719367640848,7.1757,139.36,139.3,7.1787]
[1719367641359,0.8634495,139.37,139.29,17.9476]
[1719367641538,7.1759,139.36,139.3,0.34]
[1719367641745,7.1759,139.36,139.3,7.5186]
[1719367641963,8.0386495,139.37,139.31,7.1781]
[1719367642154,7.1758,139.36,139.32,22.5227]
[1719367642540,0.8634495,139.37,139.32,22.5227]
[1719367643078,0.8634495,139.37,139.33,0.17]
[1719367643248,0.8634495,139.37,139.33,0.34]
[1719367643641,8.0385495,139.37,139.33,0.34]
[1719367643861,0.8634495,139.37,139.33,0.17]
[1719367644061,0.8634495,139.37,139.33,7.517]
[1719367644265,0.8634495,139.37,139.33,0.34]
[1719367644463,0.8634495,139.37,139.33,7.5171]
[1719367645154,7.17,139.47,139.36,22.6809]
[1719367645352,15.68,139.49,139.36,22.6809]
[1719367645353,15.68,139.49,139.41,17.9325]
[1719367645665,7.1692,139.49,139.43,22.1397]
[1719367645861,17.9186,139.52,139.43,22.1397]
[1719367646247,7.1674,139.52,139.43,22.1397]
[1719367646447,16.532,139.53,139.43,22.1397]
[1719367646650,16.532,139.53,139.4,6.3061]
[1719367646844,7.1704,139.47,139.41,0.17]
[1719367647047,7.1702,139.47,139.4,6.1361]
[1719367647248,18.7845495,139.51,139.4,6.1361]
[1719367647863,6.4228,139.48,139.39,16.0036]
[1719367648088,7.1741,139.39,139.36,6.1361]
[1719367648367,17.9302,139.43,139.32,22.1397]
[1719367648667,0.34,139.42,139.32,22.1397]
[1719367649170,45.34,139.42,139.32,22.1397]
[1719367649343,7.1739,139.4,139.32,22.1397]
[1719367649963,7.1729,139.42,139.34,7.1761]
[1719367650365,7.1729,139.42,139.35,7.176]
[1719367651070,7.1729,139.42,139.34,7.1766]
[1719367651253,7.1731,139.41,139.33,0.17]
[1719367651454,7.1731,139.41,139.33,7.5171]
[1719367651667,16.532,139.46,139.35,7.176]
[1719367651860,20.0,139.45,139.36,0.34]
[1719367652370,7.1716,139.44,139.37,13.3331]
[1719367652751,7.171,139.45,139.38,22.2627]
[1719367652956,15.3737,139.49,139.38,15.0882]
[1719367654154,7.1726,139.42,139.38,15.0882]
[1719367654672,7.1721,139.43,139.38,15.0882]
[1719367655057,15.3737,139.49,139.4,17.9327]
[1719367655364,7.1696,139.48,139.41,7.173]
[1719367656077,7.1696,139.48,139.4,17.9327]
[1719367656078,7.17,139.47,139.4,25.1061]
[1719367656449,0.8634495,139.51,139.44,7.1711]
[1719367656954,7.1684,139.5,139.43,7.5119]
[1719367657184,7.169,139.49,139.42,25.1032]
[1719367657366,7.169,139.49,139.43,7.1719]
[1719367657559,0.8634495,139.51,139.44,7.1714]
[1719367657976,7.1685,139.5,139.43,7.1719]
[1719367658883,7.1685,139.5,139.44,7.1715]
[1719367659057,8.0314495,139.51,139.44,7.1715]
[1719367659259,8.0313495,139.51,139.44,7.1715]
[1719367659456,8.0313495,139.51,139.45,7.1709]
[1719367659869,7.1685,139.5,139.42,17.9307]
[1719367660063,7.1694,139.49,139.42,25.1031]
[1719367660370,7.1685,139.5,139.42,17.9307]
[1719367660578,7.1685,139.5,139.43,0.17]
[1719367660964,8.0314495,139.51,139.44,7.1713]
[1719367661164,8.0314495,139.51,139.43,0.17]
[1719367661165,0.8634495,139.51,139.46,7.1704]
[1719367662087,0.8634495,139.51,139.45,40.7488]
[1719367663176,0.8634495,139.51,139.46,7.1704]
[1719367663374,0.8634495,139.51,139.48,7.1694]
[1719367663583,0.8634495,139.51,139.45,15.6506]
[1719367664063,0.8634495,139.51,139.48,7.1693]
[1719367664459,0.8634495,139.51,139.47,7.1699]
[1719367664858,0.8634495,139.51,139.46,25.0961]
[1719367665201,0.8634495,139.51,139.47,7.1699]
[1719367665975,0.8634495,139.51,139.46,17.9258]
[1719367666981,0.8634495,139.51,139.45,15.8206]
[1719367667152,0.8634495,139.51,139.45,22.9912]
[1719367667352,0.8634495,139.51,139.45,15.8206]
[1719367667680,0.8634495,139.51,139.46,7.1704]
[1719367668282,8.0314495,139.51,139.45,22.9914]
[1719367669388,0.8634495,139.51,139.45,22.9914]
[1719367670185,0.8634495,139.51,139.46,7.1703]
[1719367673776,0.8634495,139.51,139.44,25.0999]
[1719367674376,0.8634495,139.51,139.43,7.1718]
[1719367674766,0.8634495,139.51,139.44,7.1715]
[1719367674971,8.0314495,139.51,139.45,7.1708]
[1719367675178,8.0314495,139.51,139.44,7.1714]
[1719367676058,8.0314495,139.51,139.43,25.1014]
[1719367676059,7.169,139.49,139.43,25.1014]
[1719367676266,7.1686,139.5,139.43,25.1014]
[1719367676583,7.1686,139.5,139.44,7.1715]
[1719367677184,8.0315495,139.51,139.44,7.1715]
[1719367677494,7.1715,139.45,139.41,21.7587]
[1719367677667,15.3905,139.5,139.41,21.7587]
[1719367677873,15.3905,139.5,139.42,7.1724]
[1719367678063,15.3905,139.5,139.41,21.7587]
[1719367678476,15.3905,139.5,139.42,7.1725]
[1719367678684,15.3905,139.5,139.44,7.1714]
[1719367678885,22.559,139.5,139.44,7.1714]
[1719367679085,7.1691,139.49,139.43,17.93]
[1719367679271,7.1696,139.48,139.41,28.9316]
[1719367680264,15.3905,139.5,139.42,17.9306]
[1719367680467,15.3905,139.5,139.44,7.1714]
[1719367680773,15.3905,139.5,139.44,25.0992]
[1719367681668,0.8634495,139.51,139.46,7.1704]
[1719367681862,0.8634495,139.51,139.45,7.1709]
[1719367682059,0.8634495,139.51,139.46,7.1704]
[1719367682263,0.8634495,139.51,139.45,7.171]
[1719367682483,8.0317495,139.51,139.44,25.0989]
[1719367682876,8.0317495,139.51,139.45,7.171]
[1719367683079,0.8634495,139.51,139.46,17.9257]
[1719367683474,7.1685,139.5,139.43,7.172]
[1719367683883,0.8634495,139.51,139.42,17.9314]
[1719367683884,0.8634495,139.51,139.45,7.1709]
[1719367684271,0.8634495,139.51,139.44,17.9283]
[1719367684481,8.0313495,139.51,139.44,25.0997]
[1719367684682,8.0313495,139.51,139.46,7.1705]
[1719367684683,0.8634495,139.51,139.46,7.1705]
[1719367684998,0.8634495,139.51,139.45,7.171]
[1719367685168,8.0314495,139.51,139.45,7.171]
[1719367685490,0.8634495,139.51,139.45,7.171]
[1719367686006,8.0314495,139.51,139.44,25.0997]
[1719367687477,0.8634495,139.51,139.45,7.1709]
[1719367688578,8.0314495,139.51,139.45,7.1709]
[1719367689395,0.8634495,139.51,139.46,7.1704]
[1719367691388,0.8634495,139.51,139.47,7.1695]
[1719367691786,0.8634495,139.51,139.46,25.0954]
[1719367692601,0.8634495,139.51,139.46,25.0953]
[1719367692798,0.8634495,139.51,139.46,17.925]
[1719367693211,0.8634495,139.51,139.46,25.0954]
[1719367693709,7.1693,139.49,139.43,17.9292]
[1719367694114,7.1693,139.49,139.43,25.1012]
[1719367694903,7.1693,139.49,139.43,17.9292]
[1719367697419,22.2089,139.48,139.43,17.9292]
[1719367698106,7.1709,139.46,139.4,25.1065]
[1719367698308,15.0393,139.48,139.4,25.1065]
[1719367698309,7.1701,139.47,139.4,25.1065]
[1719367698504,15.0393,139.48,139.37,22.5974]
[1719367698704,7.1706,139.46,139.4,7.1732]
[1719367699113,7.1712,139.45,139.39,25.1082]
[1719367699425,7.1716,139.44,139.36,17.9385]
[1719367699917,7.1701,139.47,139.4,7.1732]
[1719367700123,15.0393,139.48,139.4,17.9337]
[1719367700420,7.1707,139.46,139.4,25.1071]
[1719367700796,7.1707,139.46,139.4,17.9337]
[1719367701525,7.1707,139.46,139.4,25.1071]
[1719367702032,7.17,139.47,139.4,17.9337]
[1719367702217,7.17,139.47,139.4,25.1071]
[1719367702719,22.2089,139.48,139.4,17.9337]
[1719367702924,7.17,139.47,139.41,7.1728]
[1719367703624,7.17,139.47,139.4,25.1071]
[1719367703808,7.1705,139.46,139.4,25.1071]
[1719367704321,7.1701,139.47,139.4,25.1071]
[1719367705231,7.1701,139.47,139.41,7.1729]
[1719367705407,22.2089,139.48,139.41,7.1729]
[1719367705607,7.1701,139.47,139.41,7.1729]
[1719367706726,22.2088,139.48,139.42,7.1725]
[1719367707029,15.0393,139.48,139.42,7.1725]
[1719367707238,15.0393,139.48,139.43,7.1719]
[1719367707731,15.0393,139.48,139.44,7.1714]
[1719367708324,0.8634495,139.51,139.46,7.1701]
[1719367708641,0.8634495,139.51,139.46,17.9259]
[1719367708807,0.8634495,139.51,139.46,25.0963]
[1719367709006,8.0313495,139.51,139.46,17.9259]
[1719367709418,7.1686,139.5,139.43,25.1006]
[1719367710919,7.1686,139.5,139.43,25.1009]
[1719367711224,7.1692,139.49,139.43,17.9291]
[1719367711624,7.1692,139.49,139.43,25.101]
[1719367712035,7.1685,139.5,139.44,7.1714]
[1719367712414,8.0315495,139.51,139.44,7.1714]
[1719367712729,7.1685,139.5,139.44,7.1714]
[1719367713030,7.169,139.49,139.43,25.1009]
[1719367713209,8.0314495,139.51,139.43,17.9291]
[1719367713630,7.1685,139.5,139.44,7.1713]
[1719367716639,7.169,139.49,139.43,25.101]
[1719367718027,7.169,139.49,139.43,17.9291]
[1719367718517,0.8634495,139.51,139.42,7.1721]
[1719367718518,7.1695,139.48,139.42,7.1721]
[1719367719120,7.1691,139.49,139.42,7.1721]
[1719367719924,0.8634495,139.51,139.4,33.433]
[1719367719925,7.1703,139.47,139.4,33.433]
[1719367720239,7.1699,139.48,139.41,7.1726]
[1719367720620,7.1699,139.48,139.42,33.1224]
[1719367721353,7.1691,139.49,139.43,7.1718]
[1719367721910,7.1686,139.5,139.42,43.8807]
[1719367722148,7.1686,139.5,139.44,7.1715]
[1719367722346,7.1686,139.5,139.43,33.1218]
[1719367722642,7.169,139.49,139.43,7.1718]
[1719367722848,7.1686,139.5,139.43,7.1718]
[1719367723016,7.1686,139.5,139.44,7.1714]
[1719367723453,0.8634495,139.51,139.44,7.1714]
[1719367723660,0.8634495,139.51,139.45,7.1708]
[1719367724036,8.0316495,139.51,139.44,51.0498]
[1719367724938,7.1684,139.5,139.44,51.0498]
[1719367725936,7.1689,139.49,139.44,43.8785]
[1719367726515,0.8634495,139.51,139.44,43.8785]
[1719367726715,0.8634495,139.51,139.45,25.95]
[1719367727227,8.0313495,139.51,139.45,33.1208]
[1719367727835,0.8634495,139.51,139.46,7.1705]
[1719367728431,8.0313495,139.51,139.45,33.1209]
[1719367729027,0.8634495,139.51,139.46,7.1703]
[1719367730317,0.8634495,139.51,139.46,33.1203]
[1719367730918,0.8634495,139.51,139.44,17.9285]
[1719367731153,0.8634495,139.51,139.44,43.8785]
[1719367731354,8.0314495,139.51,139.45,7.1707]
[1719367731658,8.0314495,139.51,139.45,33.1207]
[1719367731952,0.8634495,139.51,139.46,17.9251]
[1719367732246,0.8634495,139.51,139.48,51.0427]
[1719367732635,0.8634495,139.51,139.48,17.9234]
[1719367733140,0.8634495,139.51,139.48,25.0928]
[1719367734121,0.8634495,139.51,139.48,17.9234]
[1719367735622,0.8634495,139.51,139.46,7.1703]
[1719367735821,0.8634495,139.51,139.47,17.9243]
[1719367736235,0.8634495,139.51,139.47,25.0939]
[1719367736751,0.8634495,139.51,139.47,17.9243]
[1719367737155,8.0314495,139.51,139.45,33.1208]
[1719367737350,0.8634495,139.51,139.46,33.1203]
[1719367737647,0.8634495,139.51,139.47,7.1699]
[1719367737950,0.8634495,139.51,139.46,51.0464]
[1719367739662,0.8634495,139.51,139.47,7.1699]
[1719367740448,0.8634495,139.51,139.43,28.766]
[1719367740772,0.8634495,139.51,139.5,7.1684]
[1719367740934,0.8634495,139.51,139.49,7.1688]
[1719367741251,0.8634495,139.51,139.48,43.8731]
[1719367741252,0.8634495,139.51,139.48,51.0424]
[1719367741631,0.8634495,139.51,139.48,43.8731]
[1719367741847,0.8634495,139.51,139.45,17.927]
[1719367742148,16.1140495,139.51,139.45,17.927]
[1719367742332,0.8634495,139.51,139.49,7.1685]
[1719367743241,0.8634495,139.51,139.48,33.1193]
[1719367743745,0.8634495,139.51,139.47,25.0943]
[1719367743949,0.8634495,139.51,139.48,7.1694]
[1719367744128,0.8634495,139.51,139.48,33.1194]
[1719367745146,0.8634495,139.51,139.48,7.1694]
[1719367746035,0.8634495,139.51,139.47,51.0443]
[1719367746947,0.8634495,139.51,139.46,7.1703]
[1719367747749,0.8634495,139.51,139.47,7.1699]
[1719367748549,0.8634495,139.51,139.48,7.1693]
[1719367748740,0.8634495,139.51,139.49,17.9222]
[1719367749047,0.8634495,139.51,139.49,25.0911]
[1719367749559,0.8634495,139.51,139.5,7.1684]
[1719367749727,0.8634495,139.51,139.5,33.1184]
[1719367751633,0.8634495,139.51,139.5,33.4584]
[1719367751945,0.8634495,139.51,139.5,33.1184]
[1719367752456,0.8634495,139.51,139.5,33.2884]
[1719367752634,16.5438,139.59,139.56,7.1651]
[1719367753770,0.04261087,139.61,139.56,33.1151]
[1719367755157,0.04261087,139.61,139.6,7.1633]
[1719367755372,0.04261087,139.61,139.6,33.4533]
[1719367756263,0.04261087,139.61,139.6,54.6733]
[1719367756433,0.04261087,139.61,139.6,33.4533]
[1719367756631,0.04261087,139.61,139.6,40.6593]
[1719367757244,0.04261087,139.61,139.6,62.2193]
[1719367757438,0.04261087,139.61,139.6,7.5033]
[1719367757658,0.04261087,139.61,139.6,7.1633]
[1719367757855,0.04261087,139.61,139.6,33.1133]
[1719367758457,0.04261087,139.61,139.6,33.2833]
[1719367759660,0.04261087,139.61,139.58,17.91]
[1719367759964,0.04261087,139.61,139.6,7.1633]
[1719367760154,0.04261087,139.61,139.6,33.1133]
[1719367760560,0.04261087,139.61,139.59,33.1138]
[1719367761180,0.04261087,139.61,139.59,25.95]
[1719367761349,0.04261087,139.61,139.58,25.0742]
[1719367761552,5.76731286,139.74,139.6,18.62]
[1719367761755,0.8634495,139.78,139.73,44.57]
[1719367761973,0.8634495,139.78,139.73,18.62]
[1719367762161,0.8634495,139.78,139.76,17.8868]
[1719367762368,0.8634495,139.78,139.7,6.1559]
[1719367762369,0.8634495,139.78,139.74,17.8893]
[1719367762570,0.8634495,139.78,139.71,17.8939]
[1719367762766,0.8634495,139.78,139.75,7.1555]
[1719367762964,0.8634495,139.78,139.77,25.95]
[1719367763176,0.8634495,139.78,139.77,33.1046]
[1719367763474,6.2711,139.87,139.77,33.1046]
[1719367763475,6.2711,139.87,139.77,26.29]
[1719367763677,13.4207,139.87,139.81,25.95]
[1719367763882,6.2711,139.87,139.81,25.95]
[1719367764052,6.2711,139.87,139.81,33.1021]
[1719367764256,17.8703,139.9,139.77,15.607]
[1719367764471,0.8634495,139.92,139.82,25.95]
[1719367764677,7.1488,139.89,139.8,7.1529]
[1719367764877,6.6488,139.89,139.81,7.1524]
[1719367765075,0.8634495,139.92,139.78,0.34]
[1719367765453,18.7319495,139.92,139.78,18.2251]
[1719367765660,18.7319495,139.92,139.78,18.0551]
[1719367765862,7.1494,139.88,139.78,18.0551]
[1719367766093,7.15,139.86,139.79,0.17]
[1719367766395,7.1496,139.87,139.79,7.3234]
[1719367766551,7.1501,139.86,139.79,7.3234]
[1719367766756,18.7319495,139.92,139.81,7.1525]
[1719367766980,0.8634495,139.92,139.82,0.17]